Cogmind - Beta 14 *** ADVENTURER MODE // 2024.09.24 @ 19:31:07 Player: Knightshade Result: Destroyed by Y-45 Defender with Heavy Assault Rifle Performance ------------- Evolutions (2) 1000 Regions Visited (5) 1000 Robots Destroyed (170) 850 Value Destroyed (5309) 5309 Prototype IDs (12) 240 Alien Tech Used (0) 0 Bonus (653) 653 TOTAL SCORE: 9052 Bonus ------- High Alert Combat Kills 14 Entered Garrisons 200 Used RIF Installer 500 Friendly Fire -61 Cogmind --------- Core Integrity 0/550 Matter 192/300 Energy 160/160 System Corruption 0% Temperature Cool (0) Movement Treading (250) Ox1 Location -8/Materials Parts ------- > --- POWER (1) -------- Light Nuclear Core > --- PROPULSION (2) --- Armored Medium Treads Armored Medium Treads > --- UTILITY (6) ------ Huge Storage Unit Structural Scanner Advanced Visual Processing Unit Advanced Visual Processing Unit Improved Signal Interpreter Improved Light Armor Plating > --- WEAPON (2) ------- Wave Gun Long-range Proton Cannon > --- INVENTORY (25) --- Light Nuclear Core Advanced Treads Improved Medium Treads Combat Gravmag System Cesium-ion Thruster Cesium-ion Thruster Cesium-ion Thruster Cesium-ion Thruster Field Propulsion Drive Medium Storage Unit Large Battery (200) Advanced Weight Redist. System Machine Analyzer Improved Sensor Array Hacking Suite Hacking Suite Relay Coupler [NC] (29) Advanced System Restoration Module Trap Extractor (4/4 Blade) Variable Charge Gun Smartbomb Launcher Datajack Plasma Cutter Lance Peak State ------------ > --- POWER ------------ Light Nuclear Core > --- PROPULSION ------- Armored Medium Treads Armored Medium Treads > --- UTILITY ---------- Huge Storage Unit Advanced Visual Processing Unit Advanced Visual Processing Unit Armor Integrity Analyzer Improved Utility Shielding Trap Extractor > --- WEAPON ----------- Wave Gun Variable Charge Gun > --- INVENTORY -------- Improved Medium Treads Wheel Cesium-ion Thruster Cesium-ion Thruster Cesium-ion Thruster Cesium-ion Thruster Field Propulsion Drive Medium Storage Unit Advanced Weight Redist. System Machine Analyzer Improved Sensor Array Improved Terrain Scanner Hacking Suite Hacking Suite Relay Coupler [NC] Advanced System Restoration Module Long-range Proton Cannon Assault Cannon Missile Launcher Smartbomb Launcher Datajack Plasma Cutter Lance Stasis Trap [Rating: 51] Favorites ----------- Power Light Nuclear Core Engine Light Deuterium Engine Power Core Light Nuclear Core Propulsion Improved Treads Treads Improved Treads Wheel Wheel Flight Unit Improved Flight Unit Utility Huge Storage Unit Device Structural Scanner Storage Huge Storage Unit Processor Advanced Visual Processing Unit Protection Improved Utility Shielding Weapon Improved Medium Laser Energy Gun Improved Medium Laser Energy Cannon Advanced Beam Cannon Ballistic Gun Assault Rifle Ballistic Cannon Assault Cannon Launcher Missile Launcher Special Weapon Plasma Cutter Impact Weapon Heavy Mace Piercing Weapon Lance Special Melee Weapon Datajack Build | -11 -10 -9 -8 -8 -8 ------- Run | Yrd Mat Mat Mat Gar Mat Slots Evolved 4 | . . 2 2 . . Power . | . . . . . . Propulsion . | . . . . . . Utility 4 | . . 2 2 . . Weapon . | . . . . . . Parts Attached 112 | 6 8 32 25 27 14 Power 11 | 1 1 5 2 1 1 Engine 8 | 1 1 5 1 . . Core 3 | . . . 1 1 1 Reactor . | . . . . . . Propulsion 20 | 2 2 6 6 4 . Treads 12 | 2 . 5 1 4 . Leg . | . . . . . . Wheel 7 | . 2 . 5 . . Hover . | . . . . . . Flight 1 | . . 1 . . . Utility 32 | 1 4 7 7 7 6 Device 10 | . 1 5 . 2 2 Storage 6 | 1 3 . . . 2 Processor 7 | . . 2 2 2 1 Hackware . | . . . . . . Protection 9 | . . . 5 3 1 Artifact . | . . . . . . Weapon 49 | 2 1 14 10 15 7 Energy Gun 17 | 1 1 6 6 2 1 Energy Cannon 4 | . . 2 . 1 1 Ballistic Gun 3 | 1 . 2 . . . Ballistic Cannon 8 | . . . 2 4 2 Launcher 6 | . . 2 1 2 1 Special Weapon 3 | . . 1 . 2 . Impact Weapon 2 | . . . 1 1 . Slashing Weapon . | . . . . . . Piercing Weapon 2 | . . . . 1 1 Special Melee Weapon 4 | . . 1 . 2 1 Unidentified Prototypes 6 | . 1 4 1 . . Parts Lost 20 | . . 3 7 7 3 Power 3 | . . . 1 1 1 Propulsion 7 | . . 2 4 1 . Utility 5 | . . 1 1 3 . Weapon 5 | . . . 1 2 2 Highest Loss Streak 4 | . . 2 4 2 1 To Critical Strikes . | . . . . . . Average Slot Usage (%) 97 | . 97 97 97 97 96 Engine 5 | . 14 11 3 . . Core 3 | . . . 5 8 5 Treads 13 | . 10 20 4 11 18 Wheel 5 | . 17 1 12 5 . Device 11 | . 11 13 9 10 10 Storage 10 | . 14 11 9 9 12 Processor 20 | . . 17 28 19 22 Protection 4 | . . . 5 13 9 Energy Gun 10 | . 14 14 13 2 3 Energy Cannon 3 | . . 6 1 1 4 Ballistic Gun 1 | . 14 . . . . Ballistic Cannon 2 | . . . 2 7 5 Launcher 1 | . . . . 3 3 Peak Build Rating 51 | 6 13 27 32 51 49 Average Rating 29 | 4 9 23 28 38 46 On Entrance 20 | . 6 13 25 29 49 Naked Turns . | . . . . . . Heaviest Build 109 | 13 94 97 104 109 105 Greatest Support 57 | 40 40 46 46 57 54 Greatest Overweight (x) 33 | . 4 9 33 10 1 Average Overweight (x) 2 | . 1 2 4 2 1 Largest Inventory Capacity 25 | 8 25 25 25 25 25 Average Capacity 24 | 7 16 25 25 25 25 Most Carried 25 | 5 18 25 25 25 25 Average Carried 23 | 3 11 23 24 24 24 Final Capacity 25 | 8 25 25 25 25 25 Final Carried 25 | 5 18 25 25 25 25 Class Distribution -------------------- 77% | Mutant 19% | Scavenger-Mutant 3% | Skirmisher Dominant Class ---------------- Mutant | -10/Materials Mutant | -9/Materials Scavenger-Mutant | -8/Materials Mutant | -8/Garrison Mutant | -8/Materials Resources | -11 -10 -9 -8 -8 -8 ----------- Run | Yrd Mat Mat Mat Gar Mat Matter Collected 2243 | 281 143 421 276 404 718 Remotely . | . . . . . . Salvage Created 5941 | 135 429 2002 1999 346 1030 Parts 338 | 10 36 113 102 17 60 Haulers Intercepted 10 | . 2 6 1 1 . Recyclers Shooed 5 | 1 . . 4 . . Parts Field Recycled . | . . . . . . Retrieved Matter . | . . . . . . Parts Self-Destructed . | . . . . . . Prevented . | . . . . . . Kills | -11 -10 -9 -8 -8 -8 ------- Run | Yrd Mat Mat Mat Gar Mat Combat Hostiles Destroyed 111 | . 7 37 31 11 25 Melee 1 | . . . . . 1 Guns 55 | . 7 23 20 2 3 Cannons 31 | . . 4 5 6 16 AOE 17 | . . 7 3 3 4 Classes Destroyed 16 | 2 6 2 3 3 . Worker 9 | . 1 7 1 . . Builder 5 | . . . 4 . 1 Tunneler 6 | 3 . 3 . . . Hauler 10 | . 2 6 1 1 . Recycler 4 | 1 . 1 2 . . Mechanic 2 | . 1 . 1 . . Operator 6 | . . 3 2 . 1 Watcher 17 | . 3 5 5 . 4 Swarmer 21 | . 3 13 3 . 2 Grunt 52 | . 4 14 15 5 14 Brawler 1 | . . . 1 . . Duelist 2 | . . . . 1 1 Sentry 30 | . . 10 10 3 7 Demolisher 1 | . . . . 1 . Hunter 3 | . . . 2 . 1 Behemoth 1 | . . . . 1 . Best Kill Streak 7 | 4 4 7 6 3 4 Combat Bots Only 7 | . 3 7 4 3 4 Max Kills in Single Turn 3 | 1 2 3 3 2 2 Gunslinging 1 | . . 1 . . . Exploded 3 | . . 3 2 2 2 Melee 1 | . . . . . 1 Uniques/NPCs Destroyed . | . . . . . . Combat | -11 -10 -9 -8 -8 -8 -------- Run | Yrd Mat Mat Mat Gar Mat Hostile Shots Fired 622 | . 22 194 167 92 147 Missed 200 | . 1 65 58 32 44 Damage Taken 4936 | . 194 1079 1253 1161 1249 Core 812 | . 26 227 189 214 156 Absorbed by Shields . | . . . . . . Redirected to Shielding 62 | . . . . 42 20 Ignored by Resistances 1458 | . 62 331 396 316 353 Regen/Repaired (Parts) 180 | . . 96 84 . . Core Remaining (%) 77 | 100 89 43 . . . Volleys Fired 430 | 7 21 136 119 48 99 Largest 2 | 2 2 2 2 2 2 Hottest 162 | 60 85 124 124 117 162 Shots Fired 751 | 14 36 258 229 86 128 Gun 482 | 14 36 201 200 8 23 Cannon 251 | . . 51 27 73 100 Launcher 18 | . . 6 2 5 5 Special . | . . . . . . Kinetic 183 | 7 21 9 4 73 69 Thermal 519 | 7 15 243 223 8 23 Explosive 18 | . . 6 2 5 5 Electromagnetic 31 | . . . . . 31 Robot Hit Streak 24 | 4 7 21 24 23 16 Robot Miss Streak 6 | 1 1 4 6 2 2 Penetration Max . | . . . . . . Secondary Targets 7 | . . 3 4 . . Max Gunslinging Chain 1 | . . 1 1 . . Shots Hit Robots 546 | 10 25 172 165 66 108 Core Hits 234 | 5 17 66 76 27 43 Critical Kills 1 | . . 1 . . . Critical Parts Destroyed . | . . . . . . Critical Strikes 33 | . . 14 11 4 4 Burn 24 | . . 13 11 . . Meltdown 1 | . . 1 . . . Blast 8 | . . . . 4 4 Melee Attacks 15 | . . . . 9 6 Impact 7 | . . . . 7 . Slashing . | . . . . . . Piercing 6 | . . . . 2 4 Sneak Attacks 2 | . . . . . 2 Combat Hostiles . | . . . . . . Follow-up Attacks . | . . . . . . Damage Inflicted 12435 | 113 392 3493 3423 1880 3134 Guns 5977 | 113 392 2376 2618 117 361 Cannons 4709 | . . 635 461 1350 2263 Explosions 1613 | . . 482 335 413 383 Melee 127 | . . . . . 127 Ramming 9 | . . . 9 . . Kinetic 3137 | 57 223 87 72 1350 1348 Thermal 6707 | 56 169 2924 3007 117 434 Explosive 1540 | . . 482 335 413 310 Electromagnetic 915 | . . . . . 915 Impact . | . . . . . . Slashing . | . . . . . . Piercing 127 | . . . . . 127 Highest Corruption 3 | . . 3 . . . Average Corruption 3 | . . 3 . . . Corruption Purged . | . . . . . . Corruption Blocked . | . . . . . . Effects 22 | . . 22 . . . Message Errors 4 | . . 4 . . . Matter Fused 2 | . . 2 . . . Heat Flow Errors 2 | . . 2 . . . Energy Discharges 4 | . . 4 . . . Parts Fused 2 | . . 2 . . . Data Loss (minor) 3 | . . 3 . . . Data Loss (major) 1 | . . 1 . . . Misfires 2 | . . 2 . . . Alerts 2 | . . 2 . . . Overload Shots . | . . . . . . Overflow Damage 172 | . . 53 32 . 87 Projectiles 123 | . . 45 6 . 72 Explosions 49 | . . 8 26 . 15 Melee . | . . . . . . Knockbacks 12 | . . . 2 1 9 Impact . | . . . . . . Kinetic 12 | . . . 2 1 9 Secondary . | . . . . . . Self-Inflicted Damage 28 | . . . 28 . . Shots 2 | . . . 2 . . Rammed 1 | . . . 1 . . Targets Rammed 1 | . . . 1 . . Kicked . | . . . . . . Crushed . | . . . . . . Highest Temperature 444 | . 81 444 282 396 306 Average Temperature 92 | . 34 109 78 109 75 Received Heat Transfer 2136 | . 120 408 729 213 666 Effects 7 | . . 6 . 1 . Shutdowns 3 | . . 2 . 1 . Energy Bleed 1 | . . 1 . . . Damage (minor) 1 | . . 1 . . . Damage (major) 2 | . . 2 . . . Siege Activations . | . . . . . . Robots Corrupted 1 | . . . . . 1 Combat Hostiles 1 | . . . . . 1 Parts Fried 6 | . . . . . 6 Impact Corruptions . | . . . . . . Robots Melted 6 | . . 3 3 . . Combat Hostiles 6 | . . 3 3 . . Parts Melted 54 | . . 29 25 . . Heat Transferred 15359 | 125 371 7104 6919 185 655 Parts Sabotaged . | . . . . . . Parts Stolen . | . . . . . . Parts Stripped . | . . . . . . Power Chain Reactions 1 | . . . . . 1 Alert | -11 -10 -9 -8 -8 -8 ------- Run | Yrd Mat Mat Mat Gar Mat Peak Influence 545 | 20 206 490 326 545 352 Initial 228 | . 11 73 3 . 228 Average 138 | 6 78 132 85 248 168 Maximum Alert Level 2 | . 1 2 1 2 1 Low Security (%) 73 | 100 94 70 89 44 73 Level 1 21 | . 5 27 10 29 26 Level 2 5 | . . 2 . 25 . Level 3 . | . . . . . . Level 4 . | . . . . . . Level 5 . | . . . . . . High Security . | . . . . . . Max Security . | . . . . . . Squads Dispatched 11 | . 1 3 3 . 4 Investigation 5 | . 1 1 1 . 2 Extermination . | . . . . . . Reinforcement 6 | . . 2 2 . 2 Assault . | . . . . . . Garrison . | . . . . . . Intercept . | . . . . . . Searches Triggered . | . . . . . . Construction Impeded 2 | . . . . . 2 Haulers Reinforced . | . . . . . . Active Scanning Responses . | . . . . . . Cargo Convoy Interrupts . | . . . . . . Stealth | -11 -10 -9 -8 -8 -8 --------- Run | Yrd Mat Mat Mat Gar Mat Distress Signals 10 | . . 3 5 . 2 Communications Jammed . | . . . . . . Distress Signals . | . . . . . . Times Spotted 180 | . 13 61 52 16 38 Peak Tracking Total 9 | . 5 9 8 3 4 Tactical Retreats 12 | . . 4 5 . 3 Traps | -11 -10 -9 -8 -8 -8 ------- Run | Yrd Mat Mat Mat Gar Mat Traps Triggered 6 | . 1 1 . 3 1 Indirectly . | . . . . . . Trap Hack Attempts 56 | . . 13 . 43 . Triggered . | . . . . . . Disarmed 3 | . . 1 . 2 . Reprogrammed 14 | . . 4 6 4 . Reused . | . . . . . . Traps Extracted 8 | . . 4 . 4 . Installed . | . . . . . . Triggered . | . . . . . . Most Traps Carried 5 | . . 4 4 5 4 Machines | -11 -10 -9 -8 -8 -8 ---------- Run | Yrd Mat Mat Mat Gar Mat Machines Disabled 11 | . . 1 5 4 1 Max in Single Turn 1 | . . 1 1 1 1 Garrison Relay 2 | . . . . 2 . Machines Repaired . | . . . . . . Machines Dismantled 2 | . . . . 2 . Machines Sabotaged . | . . . . . . Overloaded Fab Kills . | . . . . . . Hacking | -11 -10 -9 -8 -8 -8 --------- Run | Yrd Mat Mat Mat Gar Mat Machines Accessed 48 | . 8 15 16 2 7 Terminals 32 | . 5 10 10 2 5 Fabricators . | . . . . . . Repair Stations 3 | . 1 1 1 . . Recycling Units 7 | . 2 2 2 . 1 Scanalyzers 5 | . . 2 2 . 1 Garrison Access 1 | . . . 1 . . Total Hacks 167 | . 19 61 52 4 31 Successful 119 | . 8 50 40 1 20 Failed 48 | . 11 11 12 3 11 Catastrophic 5 | . 1 2 1 1 . Database Lockouts . | . . . . . . Manual 90 | . 14 24 33 2 17 Terminals 102 | . 14 26 37 4 21 Fabricators . | . . . . . . Repair Stations 7 | . 3 2 2 . . Recycling Units 10 | . 2 2 4 . 2 Scanalyzers 47 | . . 31 8 . 8 Garrison Access 1 | . . . 1 . . Terminal Hacks 28 | . 2 4 14 1 7 Part Schematic 1 | . . . 1 . . Prototype ID Bank 5 | . 1 2 2 . . Level Access Points 1 | . . . . . 1 Branch Access Points 1 | . . . . . 1 Terminal Index 3 | . . 1 1 . 1 Garrison Index 1 | . . . . . 1 Alert Level 1 | . . . 1 . . Unreport Threat 2 | . . . 1 . 1 Locate Traps 2 | . . 1 1 . . Reprogram Traps 1 | . . . 1 . . Dispatch Records 2 | . 1 . 1 . . Recall Investigation 1 | . . . . . 1 Recall Reinforcements 1 | . . . 1 . . Hauler Manifests 3 | . . . 2 . 1 Registered Components 1 | . . . 1 . . Zone Layout 1 | . . . 1 . . Garrison Registry 1 | . . . . 1 . Fabricator Hacks . | . . . . . . Repair Station Hacks 4 | . . 2 2 . . Scan Component 2 | . . 1 1 . . Repair 2 | . . 1 1 . . Recycling Unit Hacks 7 | . 2 2 2 . 1 Report Inventory 7 | . 2 2 2 . 1 Scanalyzer 42 | . . 30 6 . 6 Insert Component 20 | . . 14 3 . 3 Analyze 22 | . . 16 3 . 3 Garrison Access Hacks 1 | . . . 1 . . Unlock Access 1 | . . . 1 . . Unauthorized Hacks 37 | . 4 12 15 . 6 Terminals 35 | . 4 12 13 . 6 Track 4 | . . 2 2 . . Assimilate 2 | . . 1 1 . . Botnet 25 | . 4 8 8 . 5 Operators 4 | . . 1 2 . 1 Fabricators . | . . . . . . Repair Stations . | . . . . . . Recycling Units 2 | . . . 2 . . Monitor 1 | . . . 1 . . Recyclers 1 | . . . 1 . . Scanalyzers . | . . . . . . Garrison Access . | . . . . . . Data Cores Recovered 1 | . . . . . 1 Used 1 | . . . . . 1 Hacking Detections 40 | . 7 12 13 1 7 Full Trace Events 2 | . . 1 1 . . Feedback Events . | . . . . . . Feedback Blocked . | . . . . . . Robot Schematics Acquired . | . . . . . . Robots Built . | . . . . . . Authchips . | . . . . . . Time . | . . . . . . Total Robot Build Rating . | . . . . . . Part Schematics Acquired 20 | . . 13 4 . 3 Parts Built . | . . . . . . Authchips . | . . . . . . Time . | . . . . . . Total Part Build Rating . | . . . . . . Parts Repaired 2 | . . 1 1 . . Time 102 | . . 51 51 . . Parts Recycled . | . . . . . . Recycled Matter . | . . . . . . Retrieved Matter . | . . . . . . Retrieved Components . | . . . . . . Parts Scanalyzed 20 | . . 14 3 . 3 Part Schematics Acquired 19 | . . 13 3 . 3 Parts Damaged . | . . . . . . Bothacking | -11 -10 -9 -8 -8 -8 ------------ Run | Yrd Mat Mat Mat Gar Mat Used RIF Installer 1 | . . . . 1 . Robots Hacked 1 | . . . . . 1 Non-combat 1 | . . . . . 1 Combat . | . . . . . . Robot Hacks Applied 1 | . . . . . 1 parse_system 1 | . . . . . 1 Relay Couplers Released 6 | . . . . 6 . Machine Destruction 6 | . . . . 6 . Fabnet Peak Effective % . | . . . . . . Robots Rewired . | . . . . . . Allies Hacked . | . . . . . . Hacks Repelled . | . . . . . . Allies | -11 -10 -9 -8 -8 -8 -------- Run | Yrd Mat Mat Mat Gar Mat Total Allies 2 | . . 1 1 . . Largest Group 1 | . . 1 1 . . Highest-Rated Group 10 | . . 10 10 . . Highest-Rated Ally 10 | . . 10 10 . . Total Orders . | . . . . . . Ally Attacks . | . . . . . . Total Damage . | . . . . . . Kills . | . . . . . . Allies Corrupted . | . . . . . . Allies Melted . | . . . . . . Intel | -11 -10 -9 -8 -8 -8 ------- Run | Yrd Mat Mat Mat Gar Mat Robot Analysis Total . | . . . . . . Derelict Logs Recovered . | . . . . . . Drone Launches . | . . . . . . Drone Recoveries . | . . . . . . Exploration | -11 -10 -9 -8 -8 -8 ------------- Run | Yrd Mat Mat Mat Gar Mat Turns Passed 13232 | 118 735 5019 3472 2018 1870 Spaces Moved 4850 | 56 477 1434 1671 690 522 Core 9 | 8 . . 1 . . Treads 2636 | 48 139 1293 217 417 522 Legs . | . . . . . . Wheels 2205 | . 338 141 1453 273 . Hover . | . . . . . . Flight . | . . . . . . Fastest Speed 50 | 50 110 140 135 140 250 Average Speed 218 | 144 128 295 170 220 250 Slowest Speed 1700 | 160 160 320 1700 320 250 Overloaded Moves . | . . . . . . Propulsion Burnouts . | . . . . . . Robots Hopped . | . . . . . . Cave-ins Triggered . | . . . . . . Exploration Rate (%) 67 | 4 86 96 98 72 48 Regions Visited 5 Branch Regions . Pre-discovered Areas . | . . . . . . Known Exits Taken 1 | . . . 1 . . Unknown Exits Taken 3 | 1 1 1 . . . Scrap Searched . | . . . . . . Spaces Dug 17 | . . . . 5 12 Terrain Destroyed 143 | . . 29 12 37 65 Melee 5 | . . . . 5 . Projectile 11 | . . . . . 11 AOE 127 | . . 29 12 32 54 Terrain Rammed . | . . . . . . Walls Destroyed . | . . . . . . Machines Disabled . | . . . . . . Actions | -11 -10 -9 -8 -8 -8 --------- Run | Yrd Mat Mat Mat Gar Mat Total 6692 | 79 565 1957 2068 1069 954 Wait 1034 | . 32 298 195 211 298 Move 4845 | 55 476 1433 1670 689 522 Hop . | . . . . . . Pick Up 121 | 11 21 28 35 17 9 Fast Attach . | . . . . . . Attach 44 | 6 2 9 14 9 4 Detach 2 | . . 2 . . . Swap 69 | . 6 23 11 19 10 Drop 61 | . 7 15 23 10 6 Fire 430 | 7 21 136 119 48 99 Melee 15 | . . . . 9 6 Ram 1 | . . . 1 . . Kick . | . . . . . . Crush . | . . . . . . Escape Stasis 8 | . . . . 8 . Rewire . | . . . . . . Trap 56 | . . 13 . 43 . Miscellaneous 6 | . . . . 6 . Route ------- -11/Scrapyard -10/Materials (discovered 3 exits: *Mat x2 / [*Min]) -9/Materials (discovered 6 exits: *Mat x3 / [*Min] / [*Sto x2]) -8/Materials (discovered 4 exits: *Fac x3 / Gar) -8/Garrison (discovered 4 exits: *Mat x4) -8/Materials (discovered 3 exits: Fac x3) History --------- Turn | Location | Event 25 | -11/Scrapyard | Discovered new exit (range 15) 119 | -11/Scrapyard | Entered Materials 317 | -10/Materials | Build established: Mutant 442 | -10/Materials | Discovered new exit (range 16) 523 | -10/Materials | Discovered new exit (range 16) 757 | -10/Materials | Discovered new exit (range 16) 854 | -10/Materials | Entered another Materials area 854 | -9/Materials | Evolved 2 slots: Utility x2 945 | -9/Materials | Destroyed 7 combat bots 1209 | -9/Materials | Discovered new exit (range 5) 1944 | -9/Materials | Destroyed 7 combat bots 2046 | -9/Materials | Discovered new exit (range 10) 2416 | -9/Materials | Discovered new exit (range 13) 3248 | -9/Materials | Discovered new exit (range 16) 3544 | -9/Materials | Discovered new exit (range 8) 3878 | -9/Materials | Core integrity fell below 50% 4217 | -9/Materials | Repaired Adv. Beam Cannon 5834 | -9/Materials | Discovered new exit (range 11) 5873 | -9/Materials | Entered another Materials area 5873 | -8/Materials | Evolved 2 slots: Utility x2 6347 | -8/Materials | Discovered new exit (range 9) 6721 | -8/Materials | Lost 4 parts (1p1n1u1w) 7019 | -8/Materials | Identified exit to Garrison 7297 | -8/Materials | Discovered new exit (range 19) 7565 | -8/Materials | Build established: Scavenger-Mutant 7602 | -8/Materials | Repaired Imp. Medium Laser 8240 | -8/Materials | Discovered new exit (range 19) 8892 | -8/Materials | Identified exit to Factory 9345 | -8/Materials | Entered Garrison 9413 | -8/Garrison | Triggered checkpoint 9479 | -8/Garrison | Garrison Relay disabled 9553 | -8/Garrison | Triggered checkpoint 9870 | -8/Garrison | Spotted B-75 Beast 9947 | -8/Garrison | Core integrity fell below 50% 9950 | -8/Garrison | Destroyed B-75 Beast 10203 | -8/Garrison | Build established: Mutant 10222 | -8/Garrison | Triggered checkpoint 10246 | -8/Garrison | Triggered checkpoint 10726 | -8/Garrison | Discovered new exit (range 11) 10743 | -8/Garrison | Discovered new exit (range 68) 10743 | -8/Garrison | Discovered new exit (range 104) 10743 | -8/Garrison | Discovered new exit (range 11) 10743 | -8/Garrison | Discovered new exit (range 80) 10840 | -8/Garrison | Garrison Relay disabled 11258 | -8/Garrison | Installed Relay Interface Framework 11363 | -8/Garrison | Entered Materials 12414 | -8/Materials | Core integrity fell below 20% 12913 | -8/Materials | Build established: Skirmisher 13233 | -8/Materials | Destroyed by Y-45 Defender with Heavy Assault Rifle Last Messages --------------- 13129_ G-47 Trooper destroyed. 13136_ Chain reaction triggered in Imp. Ion Engine. 13136_ Electrolysis Chamber disabled. 13138_ U-05 Engineer lays Concrete. 13139_ Y-45 Defender destroyed. 13140_ U-05 Engineer lays Concrete. 13143_ U-05 Engineer builds a Door. 13144_ U-05 Engineer lays Concrete. 13145_ U-05 Engineer builds a Wall. 13151_ U-05 Engineer lays Concrete. 13154_ K-01 Serf collects debris. 13155_ G-47 Trooper destroyed. 13156_ U-05 Engineer builds a Door. 13157_ K-01 Serf collects debris. 13165_ Acquired Lgt. Nuclear Core. 13167_ K-01 Serf collects debris. 13169_ Acquired 51 matter. 13179_ Acquired 35 matter. 13184_ Acquired 11 matter. 13189_ Connecting with Terminal... Map ----- +----------------------------------------------------+ | | | | | | | | | ?????????????????????????????????????????????????? | | ?????????????????????????????????????????????????? | | ?????????????????????????????????????????????????? | | ?????????????????????????????????????????????????? | | ?????????????????????????????????????????????????? | | ?????????????????????????????????????????????????? | | ?????????????????????????????????????????????????? | | ???????????????????????????????